Cogmind - Beta 15 @@@ ROGUE MODE // 2025.05.31 @ 21:19:56 Player: Darcyisverycute Result: Destroyed by P-80 Master with Gamma Rifle Performance ------------- Evolutions (7) 3500 Regions Visited (26) 5200 Robots Destroyed (298) 1490 Value Destroyed (14074) 14074 Prototype IDs (53) 1060 Alien Tech Used (0) 0 Bonus (9083) 9083 TOTAL SCORE: 34407 Bonus ------- High Alert Combat Kills 513 Follower Combat Kills 1757 Entered Garrisons 400 Met Data Miner 300 Acquired ECA 300 Met Warlord at Base 500 MAIN.C Attacked Warlord 500 Warlord Defense Kills 3736 Built Enhanced Grunts 300 A7 Reached Mainframe 300 Met R17 at Cetus 500 Friendly Fire -23 Cogmind --------- Core Integrity 0/1300 Matter 37/300 Energy 79/100 System Corruption 40% Temperature Cool (2) Movement Hovering (61) Location -3/Garrison Parts ------- > --- POWER (2) -------- (None) > --- PROPULSION (6) --- Cooled Antigrav System Combat Antigrav System > --- UTILITY (8) ------ Large Storage Unit Experimental Optical Array Improved Hacking Suite Advanced System Shield Advanced System Shield > --- WEAPON (5) ------- (None) > --- INVENTORY (15) --- Micro Antimatter Reactor Micro Antimatter Reactor Advanced Heat Sink Advanced Sensor Array Improved Terrain Scanner Makeshift ECM Suite Advanced Focal Shield Advanced Focal Shield Advanced Hardlight Generator Advanced Trap Extractor (0/8) Faulty Tiamat Missile Launcher Signal Generator Peak State ------------ > --- POWER ------------ Vortex Chain Reactor > --- PROPULSION ------- Centrium Heavy Treads Centrium Heavy Treads Centrium Heavy Treads > --- UTILITY ---------- Advanced Cryofiber Web Advanced Heat Sink Experimental Cooling System Medium Storage Unit Advanced Targeting Computer Centrium Medium Armor Plating > --- WEAPON ----------- Plasma Storm > --- INVENTORY -------- Linear Gravjet Linear Gravjet Improved Gyrokinetic Inverter Cooled Antigrav System Cooled Linear Gravjet Energy Well Advanced EM Shield Advanced KE Penetrator Advanced KE Penetrator Signal Generator [Rating: 154] Favorites ----------- Power Vortex Chain Reactor Engine Cooled Ion Engine Power Core Fusion Compressor Reactor Vortex Chain Reactor Propulsion Light Treads Treads Light Treads Leg Thunder Leg Wheel Armored Wheel Hover Unit Cooled Linear Gravjet Flight Unit Improved VTOL Module Utility Advanced Targeting Computer Device Improved Cooling System Storage High-capacity Storage Unit Processor Advanced Targeting Computer Hackware Advanced System Shield Protection Centrium Medium Armor Plating Weapon Heavy Assault Rifle Energy Gun EM Pulse Gun Energy Cannon Long-range Proton Cannon Ballistic Gun Heavy Assault Rifle Ballistic Cannon Linear Accelerator Launcher Tiamat Missile Launcher Special Weapon CPS Tube Impact Weapon Heavy Hammer Slashing Weapon Chainsword Piercing Weapon Kinetic Spear Build | -11 -10 -10 -9 -9 -8 -8 -8 -8 -8 -6 -6 -6 -6 -5 -5 -5 -5 -5 -4 -4 -4 -4 -4 -4 -3 -3 ------- Run | Yrd Mat Min Mat Min Mat Sto Gar Rec Scr Fac Low Low Dat Pro Fac Upp Upp War Pro Fac Ext Cet Arc Hub Res Gar Slots Evolved 14 | . . . 2 . 2 . . . . 4 . . . . 2 . . . . 2 . . . . 2 . Power 1 | . . . . . . . . . . . . . . . 1 . . . . . . . . . . . Propulsion 4 | . . . 1 . 1 . . . . 1 . . . . . . . . . 1 . . . . . . Utility 6 | . . . . . . . . . . 2 . . . . 1 . . . . 1 . . . . 2 . Weapon 3 | . . . 1 . 1 . . . . 1 . . . . . . . . . . . . . . . . Parts Attached 275 | 8 3 2 23 6 13 7 11 3 3 9 2 2 . 16 36 . 1 18 . 4 7 10 5 30 51 5 Power 27 | 1 . 1 1 . 2 1 . . . . . . . 1 5 . . 1 . . . . . 5 8 1 Engine 8 | 1 . . 1 . 2 1 . . . . . . . . 1 . . . . . . . . 2 . . Core 6 | . . 1 . . . . . . . . . . . 1 4 . . . . . . . . . . . Reactor 13 | . . . . . . . . . . . . . . . . . . 1 . . . . . 3 8 1 Propulsion 87 | 2 . 1 8 1 4 . 7 1 . 3 . . . 5 10 . 1 2 . 1 6 5 3 10 17 . Treads 26 | 2 . . 3 1 3 . 6 1 . . . . . . . . . . . . 1 5 . 4 . . Leg 8 | . . 1 . . . . 1 . . . . . . . . . . . . . 4 . . 2 . . Wheel 6 | . . . 3 . . . . . . . . . . 1 . . . . . . . . . 2 . . Hover 40 | . . . . . 1 . . . . . . . . 3 10 . . 2 . 1 1 . 3 2 17 . Flight 7 | . . . 2 . . . . . . 3 . . . 1 . . 1 . . . . . . . . . Utility 74 | 2 2 . 3 2 4 . 1 . 1 4 2 1 . 4 12 . . 6 . 3 1 3 1 8 13 1 Device 52 | 1 1 . 2 . 4 . 1 . . 2 2 1 . 4 9 . . 6 . 3 1 1 1 5 7 1 Storage 4 | 1 1 . . . . . . . . . . . . . 1 . . . . . . . . 1 . . Processor 6 | . . . . . . . . . 1 1 . . . . . . . . . . . . . 1 3 . Hackware 7 | . . . 1 . . . . . . 1 . . . . 2 . . . . . . . . 1 2 . Protection 5 | . . . . 2 . . . . . . . . . . . . . . . . . 2 . . 1 . Artifact . | . . . . . . . . . . . . . . . . . . . . . . . . . . . Weapon 87 | 3 1 . 11 3 3 6 3 2 2 2 . 1 . 6 9 . . 9 . . . 2 1 7 13 3 Energy Gun 31 | 2 1 . 8 . 1 3 . . . . . . . 3 1 . . 1 . . . 1 1 5 4 . Energy Cannon 12 | . . . 1 . . . . . . . . . . 2 . . . 4 . . . . . . 5 . Ballistic Gun 32 | 1 . . 2 2 1 2 3 2 . . . 1 . . 7 . . 3 . . . 1 . 2 2 3 Ballistic Cannon 1 | . . . . . . . . . . . . . . . . . . . . . . . . . 1 . Launcher 4 | . . . . 1 1 . . . . . . . . . . . . 1 . . . . . . 1 . Special Weapon 3 | . . . . . . . . . 2 . . . . 1 . . . . . . . . . . . . Impact Weapon 1 | . . . . . . 1 . . . . . . . . . . . . . . . . . . . . Slashing Weapon 2 | . . . . . . . . . . 2 . . . . . . . . . . . . . . . . Piercing Weapon 1 | . . . . . . . . . . . . . . . 1 . . . . . . . . . . . Special Melee Weapon . | . . . . . . . . . . . . . . . . . . . . . . . . . . . Unidentified Prototypes 40 | . . . 6 . 3 3 . . . . . . . 8 4 . . 9 . . . 4 . . 3 . Corrupted Parts 2 | . . 1 . . . . . . . . . . . . . . . . . . . 1 . . . . System Corruption 3 | . . 2 . . . . . . . . . . . . . . . . . . . 1 . . . . Parts Lost 94 | . . 2 5 2 . . 5 1 . . . . . . 9 . . . . 1 2 . . 34 19 14 Power 13 | . . 1 1 . . . . . . . . . . . 1 . . . . . . . . 5 3 2 Propulsion 28 | . . . . . . . 2 . . . . . . . 3 . . . . 1 1 . . 12 5 4 Utility 17 | . . . . . . . 1 . . . . . . . 1 . . . . . 1 . . 8 3 3 Weapon 36 | . . 1 4 2 . . 2 1 . . . . . . 4 . . . . . . . . 9 8 5 Highest Loss Streak 15 | . . 2 2 2 . . 4 1 . . . . . . 4 . . . . 1 1 . . 15 5 14 To Critical Strikes . | . . . . . . . . . . . . . . . . . . . . . . . . . . . Average Backups 12 | 1 10 16 19 19 19 20 19 19 19 6 5 5 5 4 4 8 8 7 9 8 8 7 8 9 12 13 Power . | . . . . . . . 1 1 1 . . . . . . . . . . . . . . . 1 1 Propulsion 3 | . 2 3 7 8 8 8 8 8 8 1 1 1 1 . . 1 1 . 1 . . 2 3 4 1 1 Utility 5 | . 4 9 7 7 6 6 7 8 8 2 2 2 2 1 4 7 7 6 6 6 6 3 3 3 8 8 Weapon 2 | . 3 4 4 3 4 4 3 2 2 . . . . . . . . 1 2 1 2 1 2 1 1 . Tool/Special . | . . . . . . . . . . . . . . . . . . . . . . . . . . . Unused Backups 50 | . 2 . 15 1 6 1 . . 1 6 1 . . 2 . . . 4 . 1 . 3 1 . 4 2 Power 2 | . 1 . . . . . . . . . . . . . . . . . . . . . . . 1 . Propulsion 9 | . . . 5 1 . . . . . 2 . . . . . . . 1 . . . . . . . . Utility 26 | . . . 4 . 2 1 . . 1 3 1 . . 2 . . . 3 . 1 . 2 1 . 3 2 Weapon 11 | . 1 . 5 . 3 . . . . 1 . . . . . . . . . . . 1 . . . . Tool/Special 2 | . . . 1 . 1 . . . . . . . . . . . . . . . . . . . . . Average Slot Usage (%) 87 | . 99 98 99 99 99 100 99 99 77 97 100 100 100 91 96 94 97 80 70 72 71 58 57 56 82 85 Engine 5 | . 14 11 5 11 9 9 9 9 9 6 6 6 6 3 2 . . . . . . . . 4 . . Core 1 | . . 1 5 . . . . . . . . . . 2 7 11 11 2 . . . . . . . . Reactor 1 | . . . . . . . . . . . . . . . . . . 3 5 5 5 5 5 1 7 7 Treads 14 | . 28 28 17 20 27 27 28 36 36 . . . . . . . . . . . . 14 13 11 . . Wheel 2 | . . . 15 12 9 9 6 . . . . . . . . . . . . . . . . . . . Hover 8 | . . . . . . . . . . . . . . 5 25 23 23 27 29 31 24 . 2 3 24 25 Flight 3 | . . . . . . . . . . 31 33 33 33 27 . . 2 . . . . . . . . . Device 11 | . 13 14 5 9 9 9 8 9 9 18 20 20 20 18 12 5 5 4 5 9 12 14 14 10 11 7 Storage 6 | . 14 14 11 11 9 9 9 9 9 . . . . . . 5 5 5 5 5 5 5 5 7 4 4 Processor 3 | . . . . . . . . . . 5 6 6 6 6 5 5 5 5 5 5 5 5 5 3 7 8 Hackware 3 | . . . 5 . . . . . . . . . . . 9 11 11 11 11 10 7 2 . 2 9 14 Energy Gun 7 | . 25 25 25 1 . 11 7 . . . . . . 2 7 11 11 4 5 4 5 4 4 2 3 3 Ballistic Gun 12 | . 2 2 7 31 35 21 27 35 3 23 26 26 26 18 17 11 11 3 . . . 1 . 3 . 4 Peak Build Rating 154 | 9 9 11 25 22 35 37 40 35 32 53 55 57 57 98 116 105 105 141 136 150 145 154 154 154 150 145 Average Rating 66 | 5 8 9 20 20 29 34 36 33 25 48 54 56 57 71 100 102 103 120 136 145 140 112 130 69 117 127 On Entrance 69 | . 9 9 11 21 21 33 36 35 33 32 53 55 57 57 97 102 102 105 136 136 136 135 154 154 25 135 Naked Turns . | . . . . . . . . . . . . . . . . . . . . . . . . . . . Heaviest Build 114 | 12 48 50 57 63 62 63 63 62 58 58 23 23 23 42 45 46 44 114 71 79 79 80 80 80 91 82 Greatest Support 240 | 40 40 40 40 24 20 12 90 90 90 25 25 25 25 54 72 72 72 66 66 83 62 240 240 240 92 92 Greatest Overweight (x) 11 | . 1 1 4 4 5 5 5 . . 2 . . . 2 1 . . 2 1 1 2 1 2 11 4 1 Average Overweight (x) . | . . 1 3 3 4 4 3 . . . . . . . . . . . 1 . 1 . . . . . Largest Inventory Capacity 20 | 8 20 20 20 20 20 20 20 20 20 20 5 5 5 5 10 10 10 10 10 10 10 10 10 15 15 15 Average Capacity 13 | 7 14 20 20 20 20 20 20 20 20 6 5 5 5 5 5 10 10 10 10 10 10 10 10 13 15 15 Most Carried 20 | 3 17 19 20 20 20 20 20 20 20 20 5 5 5 5 9 9 10 10 10 10 10 10 10 12 15 15 Average Carried 13 | 1 10 16 19 19 19 19 19 19 19 5 4 5 5 4 4 9 9 9 10 9 9 8 9 10 13 14 Final Capacity 20 | 8 20 20 20 20 20 20 20 20 20 5 5 5 5 5 10 10 10 10 10 10 10 10 10 15 15 15 Final Carried 20 | 3 17 19 20 20 20 20 20 20 20 5 5 5 5 5 9 9 10 10 10 10 10 10 10 9 14 12 Class Distribution -------------------- 21% | Gunner 13% | Scavenger-Gunner 10% | Mutant 9% | Hacker-Sprinter 8% | Scavenger-Mutant 8% | Hacker-Gunner 7% | Scavenger-Sprinter 3% | Sprinter 3% | Commander-Mutant Dominant Class ---------------- Mutant | -10/Materials Mutant | -10/Mines Gunner | -9/Materials Gunner | -9/Mines Gunner | -8/Materials Gunner | -8/Storage Scavenger-Gunner | -8/Garrison Scavenger-Gunner | -8/Recycling Commander-Mutant | -8/Scraptown Commander-Sprinter | -6/Factory Sprinter | -6/Lower Caves Scavenger-Sprinter | -6/Lower Caves Scavenger-Sprinter | -6/Data Miner Sprinter | -5/Proximity Caves Hacker-Sprinter | -5/Factory Hacker-Sprinter | -5/Upper Caves Hacker-Sprinter | -5/Upper Caves Hacker-Gunner | -5/Warlord Hacker-Gunner | -4/Proximity Caves Hacker-Sprinter | -4/Factory Hacker-Gunner | -4/Extension Commander-Tank | -4/Cetus Scavenger-Mutant | -4/Archives Scavenger-Mutant | -4/Hub_04(d) Scavenger-Mutant | -3/Research Hacker-Gunner | -3/Garrison Resources | -11 -10 -10 -9 -9 -8 -8 -8 -8 -8 -6 -6 -6 -6 -5 -5 -5 -5 -5 -4 -4 -4 -4 -4 -4 -3 -3 ----------- Run | Yrd Mat Min Mat Min Mat Sto Gar Rec Scr Fac Low Low Dat Pro Fac Upp Upp War Pro Fac Ext Cet Arc Hub Res Gar Matter Collected 7819 | 202 170 153 475 190 926 60 1011 212 60 199 207 166 . 381 964 . 91 274 7 20 200 110 209 622 787 123 Remotely 333 | . . . . . 333 . . . . . . . . . . . . . . . . . . . . . Salvage Created 14782 | 156 558 95 1415 176 917 107 1762 709 . 199 194 179 . 302 960 . 85 1498 47 . 1264 230 677 2009 1129 114 Parts 700 | 11 36 4 95 13 46 6 107 25 . 3 6 5 . 17 49 . 3 60 3 . 35 15 26 71 55 9 Haulers Intercepted 14 | . 1 . 4 . 3 1 . . . . . . . . 1 . . . . . . . . 2 2 . Recyclers Shooed 4 | . 1 . 2 . . . . . . . . . . . . . . . . . . . . 1 . . Parts Field Recycled . | . . . . . . . . . . . . . . . . . . . . . . . . . . . Retrieved Matter . | . . . . . . . . . . . . . . . . . . . . . . . . . . . Parts Self-Destructed 56 | . . . . . . . . . . . 14 6 . 21 . . 8 . 7 . . . . . . . Prevented 6 | . . . . . . . . . . . . . . . . . 4 . 2 . . . . . . . Kills | -11 -10 -10 -9 -9 -8 -8 -8 -8 -8 -6 -6 -6 -6 -5 -5 -5 -5 -5 -4 -4 -4 -4 -4 -4 -3 -3 ------- Run | Yrd Mat Min Mat Min Mat Sto Gar Rec Scr Fac Low Low Dat Pro Fac Upp Upp War Pro Fac Ext Cet Arc Hub Res Gar Combat Hostiles Destroyed 219 | . 11 2 26 5 14 1 41 3 . . 3 3 . 2 14 . 1 34 2 . 11 3 4 21 15 3 Guns 126 | . 6 2 22 5 12 1 40 3 . . 3 3 . 2 14 . 1 1 . . . . . 8 3 . Cannons 15 | . . . . . . . . . . . . . . . . . . . . . . . . 1 11 3 AOE 70 | . 5 . 3 . 2 . . . . . . . . . . . . 33 2 . 10 3 2 10 . . Classes Destroyed 21 | 2 6 . 2 . 2 . 3 . . . 1 . . . . . . 4 . . . . . 1 . . Worker 11 | . 2 . . . 1 . . . . 1 . . . . 2 . . . . . . . . 3 2 . Builder 4 | . . . . . 1 . . . . . . . . . 1 . . . . . 1 . . 1 . . Tunneler 8 | 4 . . . . . . . . . 1 . . . . 2 . . . . . . . . . 1 . Hauler 14 | . 1 . 4 . 3 1 . . . . . . . . 1 . . . . . . . . 2 2 . Recycler 15 | 1 1 . 1 . 1 . . 6 . 1 . . . . 1 . . . . . 2 . . 1 . . Mechanic 1 | . . . . . . . . . . . . . . . . . . 1 . . . . . . . . Operator 12 | . 1 . 1 . . . . . . . . . . . . . . . . . . . 9 1 . . Watcher 13 | . 2 . 5 . 1 . . . . . . . . . . . . . . . 2 1 . 1 1 . Swarmer 45 | . 3 . 8 3 . . 13 . . . . 2 . . 7 . . . 2 . . . . . 4 3 Saboteur 3 | . . . . . . . . . . . . . . . . . . 3 . . . . . . . . Grunt 94 | . 8 2 10 . 10 1 12 . . . 2 2 . 1 2 . 1 24 . . 8 . . 11 . . Brawler 4 | . . . . . 1 . 1 . . . . . . . . . . 2 . . . . . . . . Duelist 6 | . . . 3 . 1 . 1 . . . . . . . . . . 1 . . . . . . . . Protector 2 | . . . . . . . . . . . . . . . . . . 2 . . . . . . . . Sentry 32 | . . . 5 2 2 . 9 3 . . . . . . 2 . . . . . 1 . 4 2 2 . Hunter 11 | . . . . . . . 2 . . . . . . 1 3 . . . . . . . . 5 . . Programmer 13 | . . . . . . . 2 . . . . . . . . . . . . . . . . 2 9 . Heavy 1 | . . . . . . . . . . . . . . . . . . . . . . . . 1 . . Behemoth 3 | . . . . . . . 1 . . . . . . . . . . . . . 2 . . . . . Cetus Guard 3 | . . . . . . . . . . . . . . . . . . . . . . 3 . . . . Executioner 2 | . . . . . . . . . . . . . . . . . . 2 . . . . . . . . Mutant 1 | . . . . . . . . . . . 1 . . . . . . . . . . . . . . . Best Kill Streak 18 | 5 5 2 8 3 4 2 6 2 . 2 2 3 . 1 5 . 1 18 2 . 11 4 4 12 3 3 Combat Bots Only 17 | . 3 2 6 3 3 1 6 1 . . 2 3 . 1 5 . 1 17 2 . 7 3 3 8 3 3 Max Kills in Single Turn 5 | 1 4 1 2 2 2 1 2 1 . 1 1 2 . 1 2 . 1 5 2 . 3 2 1 2 1 1 Gunslinging 1 | . . . 1 1 . . 1 . . . . 1 . . . . . . . . . . . . . . Exploded 4 | . 3 . 1 . 1 . . . . . . . . . . . . 4 2 . 3 1 1 2 . . Melee . | . . . . . . . . . . . . . . . . . . . . . . . . . . . Uniques/NPCs Destroyed . | . . . . . . . . . . . . . . . . . . . . . . . . . . . Combat | -11 -10 -10 -9 -9 -8 -8 -8 -8 -8 -6 -6 -6 -6 -5 -5 -5 -5 -5 -4 -4 -4 -4 -4 -4 -3 -3 -------- Run | Yrd Mat Min Mat Min Mat Sto Gar Rec Scr Fac Low Low Dat Pro Fac Upp Upp War Pro Fac Ext Cet Arc Hub Res Gar Hostile Shots Fired 1426 | . 24 15 75 36 49 2 113 6 . . 6 13 . 14 156 19 4 10 1 22 21 27 19 427 211 156 Missed 436 | . 6 . 28 5 12 1 24 . . . 6 7 . 7 49 9 3 6 . 10 11 6 7 126 62 51 Hits 990 | . 18 15 47 31 37 1 89 6 . . . 6 . 7 107 10 1 4 1 12 10 21 12 301 149 105 Melee 39 | . . . 3 . 3 . 2 . . . . . . 1 . . . . . . . . . . . 30 Projectile 951 | . 18 15 44 31 34 1 87 6 . . . 6 . 6 107 10 1 4 1 12 10 21 12 301 149 75 AOE 1 | . . . . . . . 1 . . . . . . . . . . . . . . . . . . . Critical Strikes 62 | . . . 1 1 2 . 2 . . . . . . . 4 2 . . 1 1 1 3 1 19 8 16 Part Disruptions 2 | . . . . . . . . . . . . . . . . . . . . . . . . 1 1 . Damage Taken 20380 | . 221 200 1027 416 633 55 1621 94 . . . 91 . 165 1914 184 18 103 15 325 402 426 308 6275 3488 2399 Core 3197 | . 44 49 294 52 32 16 163 . . . . 12 . . 159 16 18 17 . 20 32 41 28 881 608 715 Absorbed by Shields 288 | . . . . . . . . . . . . . . . . . . 67 . . 8 157 . . 56 . Reduced by Siege Mode 212 | . . . . . . . . . . . . . . . . . . . . . . 12 . 200 . . Redirected to Shielding 27 | . . . . . . . . . . . . . . . . . . . . . . . . . 27 . Ignored by Resistances 155 | . . . . . . . . . . . . . . . 125 . . . . . . . . 30 . . Regen/Repaired (Parts) 270 | . . . . . 53 . . . . 36 . . . . 127 . . 11 . . . . . . 43 . Core Remaining (%) 60 | 100 . 62 . 13 . . . . 61 . . . . 98 . . . . 79 . . . . 12 . . Volleys Fired 755 | 12 38 8 61 12 40 3 95 13 . 5 9 9 . 19 97 31 4 23 1 . 14 9 42 102 89 19 Largest 5 | 2 2 2 3 3 4 4 4 4 . 4 4 4 . 3 5 1 4 1 1 . 1 1 1 3 3 3 Hottest 300 | 60 80 60 135 113 94 145 145 98 . 96 96 96 . 264 226 88 234 300 300 . 300 300 300 300 237 175 Shots Fired 1614 | 21 76 16 180 31 152 10 281 50 . 20 36 36 . 43 217 32 14 23 1 . 14 9 42 142 133 35 Gun 1486 | 21 76 16 180 30 148 10 281 50 . 20 36 36 . 39 217 32 14 13 1 . 14 8 42 133 42 27 Cannon 109 | . . . . . . . . . . . . . . . . . . . . . . 1 . 9 91 8 Launcher 15 | . . . . 1 4 . . . . . . . . . . . . 10 . . . . . . . . Special 4 | . . . . . . . . . . . . . . 4 . . . . . . . . . . . . Kinetic 888 | 12 2 8 41 22 148 4 199 50 . 20 36 36 . 33 121 1 6 . . . . . . 83 51 15 Thermal 331 | 4 . . . . . . . . . . . . . 6 96 31 8 13 1 . 14 8 42 50 46 12 Explosive 5 | . . . . 1 4 . . . . . . . . . . . . . . . . . . . . . Electromagnetic 354 | 5 74 8 139 8 . 6 82 . . . . . . . . . . . . . . . . . 24 8 Entropic 32 | . . . . . . . . . . . . . . . . . . 10 . . . 1 . 9 12 . Robot Hit Streak 33 | 5 6 8 18 10 15 5 19 16 . 19 8 4 . 5 16 . 3 7 2 . 18 2 17 33 12 2 Robot Miss Streak 7 | 2 3 2 3 7 3 4 5 2 . 3 3 3 . 2 5 . 3 4 3 . 5 . 2 6 5 6 Penetration Max 1 | . . . . . . . . . . . . . . . 1 . 1 . . . . . . 1 1 . Secondary Targets 25 | . 1 . 4 2 3 . 7 . . . 1 1 . 1 5 . . . . . . . . . . . Max Gunslinging Chain 1 | . 1 . 1 1 1 . 1 . . . 1 1 . 1 1 . . . . . . . . . . . Shots Hit Robots 916 | 12 34 11 122 19 93 5 147 34 . 17 23 13 . 27 110 . 8 11 1 . 9 1 31 101 78 9 Core Hits 642 | 5 28 5 59 7 41 5 79 13 . 4 8 8 . 10 43 . 3 89 3 . 50 30 38 80 29 5 Critical Kills 6 | . . . . . . . 1 . . . . . . . 1 . . . . . . . . 4 . . Critical Parts Destroyed 4 | . . . . . . . . 1 . . . . . . . . . . . . . . . 3 . . Critical Strikes 20 | 1 . . 1 . . . 1 1 . 1 . . . . 3 . . . . . . 1 . 9 2 . Burn 1 | . . . . . . . . . . . . . . . 1 . . . . . . . . . . . Destroy 10 | . . . . . . . 1 1 . . . . . . 1 . . . . . . . . 7 . . Blast 1 | . . . . . . . . . . . . . . . . . . . . . . . . . 1 . Corrupt 2 | 1 . . 1 . . . . . . . . . . . . . . . . . . . . . . . Sever 1 | . . . . . . . . . . 1 . . . . . . . . . . . . . . . . Impale 1 | . . . . . . . . . . . . . . . 1 . . . . . . . . . . . Sunder 4 | . . . . . . . . . . . . . . . . . . . . . . 1 . 2 1 . Melee Attacks 57 | . . . . . . 1 15 . . 9 3 . . 1 21 5 . . . 2 . . . . . . Impact 18 | . . . . . . 1 15 . . 2 . . . . . . . . . . . . . . . . Slashing 11 | . . . . . . . . . . 7 3 . . 1 . . . . . . . . . . . . Piercing 28 | . . . . . . . . . . . . . . . 21 5 . . . 2 . . . . . . Sneak Attacks 7 | . . . . . . . . . . 1 . . . . 6 . . . . . . . . . . . Combat Hostiles . | . . . . . . . . . . . . . . . . . . . . . . . . . . . Follow-up Attacks . | . . . . . . . . . . . . . . . . . . . . . . . . . . . Damage Inflicted 36885 | 172 1512 135 2323 372 1935 82 2597 571 . 443 379 267 . 423 2888 . 222 6936 70 . 2653 1821 1909 5575 3243 357 Guns 15569 | 172 547 135 1943 323 1525 82 2565 571 . 220 379 267 . 423 1935 . 222 53 6 . 150 19 690 2241 885 216 Cannons 2974 | . . . . . . . . . . . . . . . . . . . . . . 86 . 516 2281 91 Explosions 17026 | . 965 . 380 49 410 . 32 . . . . . . . . . . 6883 64 . 2503 1716 1218 2806 . . Melee 1037 | . . . . . . . . . . 223 . . . . 814 . . . . . . . . . . . Ramming 279 | . . . . . . . . . . . . . . . 139 . . . . . . . 1 12 77 50 Kinetic 10110 | 90 10 59 341 194 1525 . 1830 571 . 220 379 267 . 364 1237 . 106 . . . . . . 1629 1157 131 Thermal 15277 | 22 205 . 380 49 . . 32 . . . . . . 59 698 . 116 2923 70 . 2653 1735 1908 3418 924 85 Explosive 1170 | . 760 . . . 410 . . . . . . . . . . . . . . . . . . . . . Electromagnetic 3922 | 60 537 76 1602 129 . 82 735 . . . . . . . . . . . . . . . . . 610 91 Impact . | . . . . . . . . . . . . . . . . . . . . . . . . . . . Slashing 223 | . . . . . . . . . . 223 . . . . . . . . . . . . . . . . Piercing 814 | . . . . . . . . . . . . . . . 814 . . . . . . . . . . . Entropic 5090 | . . . . . . . . . . . . . . . . . . 4013 . . . 86 . 516 475 . Highest Corruption 39 | . . 2 5 5 . . 1 1 1 . . . . . 3 3 3 3 . . . 1 1 9 33 39 Average Corruption 6 | . . 2 5 5 . . 1 1 1 . . . . . 2 3 3 3 . . . 1 1 2 19 34 Corruption Purged 1 | . . . . . . . . . . . . . . . . . . . . . . . 1 . . . Corruption Blocked . | . . . . . . . . . . . . . . . . . . . . . . . . . . . Effects 138 | . . . 7 18 . . 1 9 3 . . . . . 8 12 2 . . . . 4 1 11 46 16 Message Errors 29 | . . . 1 6 . . . 3 1 . . . . . 1 1 . . . . . . . 5 8 3 Matter Fused 29 | . . . . 5 . . . 1 . . . . . . 1 3 . . . . . 1 1 2 10 5 Heat Flow Errors 17 | . . . 2 2 . . . . . . . . . . 3 2 . . . . . 1 . . 5 2 Energy Discharges 18 | . . . 2 . . . 1 3 1 . . . . . . 3 . . . . . . . 3 5 . Parts Rejected 1 | . . . . . . . . . . . . . . . . . . . . . . . . . . 1 Parts Fused 1 | . . . . . . . . . . . . . . . . . . . . . . . . 1 . . Data Loss (minor) 14 | . . . 1 1 . . . . 1 . . . . . 1 1 1 . . . . 2 . . 6 . Data Loss (major) 12 | . . . 1 . . . . 2 . . . . . . 1 1 1 . . . . . . . 6 . Misfires 4 | . . . . 1 . . . . . . . . . . . 1 . . . . . . . . 1 1 Alerts 2 | . . . . . . . . . . . . . . . . . . . . . . . . . 1 1 Misdirections 4 | . . . . . . . . . . . . . . . . . . . . . . . . . 2 2 Weapon Failures 7 | . . . . 3 . . . . . . . . . . 1 . . . . . . . . . 2 1 Overload Shots 1 | . . . . . . . . . . . . . . . . . . . . . . 1 . . . . Overflow Damage 719 | . 101 . 34 22 4 . . . . 71 . . . . 72 . . 77 . . 34 . 5 74 225 . Projectiles 284 | . . . . . . . . . . . . . . . . . . . . . . . . 59 225 . Explosions 292 | . 101 . 34 22 4 . . . . . . . . . . . . 77 . . 34 . 5 15 . . Melee 143 | . . . . . . . . . . 71 . . . . 72 . . . . . . . . . . . Knockbacks 4 | . . . . . . . . . . . . . . . 1 . . . . . . . . . 3 . Impact 1 | . . . . . . . . . . . . . . . 1 . . . . . . . . . . . Kinetic 3 | . . . . . . . . . . . . . . . . . . . . . . . . . 3 . Secondary . | . . . . . . . . . . . . . . . . . . . . . . . . . . . Self-Inflicted Damage 821 | . 10 . 226 43 . . 41 . . . . . . . 69 . . . . . 119 . . 196 77 40 Shots 22 | . 1 . 4 1 . . 1 . . . . . . . . . . . . . 6 . . 9 . . Rammed 7 | . . . . . . . . . . . . . . . 2 . . . . . . . 1 3 . 1 Targets Rammed 7 | . . . . . . . . . . . . . . . 2 . . . . . . . 1 3 . 1 Kicked . | . . . . . . . . . . . . . . . . . . . . . . . . . . . Crushed . | . . . . . . . . . . . . . . . . . . . . . . . . . . . Highest Temperature 398 | . 198 4 302 199 96 48 248 3 . 8 10 78 3 144 361 357 270 350 108 . 391 . . 268 398 277 Average Temperature 91 | . 52 2 93 80 30 24 56 3 . 3 7 11 2 19 115 87 136 152 65 . 92 . . 80 111 114 Received Heat Transfer 3417 | . 114 114 231 108 324 9 411 27 . . . 9 . 45 333 54 9 18 . 36 367 . 27 964 154 63 Effects 15 | . . . 2 . . . . . . . . . . . 5 . . 3 . . . . . . 5 . Shutdowns 2 | . . . . . . . . . . . . . . . . . . . . . . . . . 2 . Interference 11 | . . . 2 . . . . . . . . . . . 4 . . 3 . . . . . . 2 . Short Circuit 1 | . . . . . . . . . . . . . . . . . . . . . . . . . 1 . Damage (minor) 1 | . . . . . . . . . . . . . . . 1 . . . . . . . . . . . Siege Activations 6 | . . . . . . . . . . . . . . . . . . . . . . 1 2 3 . . Total Turns 70 | . . . . . . . . . . . . . . . . . . . . . . 9 12 49 . . Longest Duration 21 | . . . . . . . . . . . . . . . . . . . . . . 9 9 21 . . Martial Activations . | . . . . . . . . . . . . . . . . . . . . . . . . . . . Shielding Activations . | . . . . . . . . . . . . . . . . . . . . . . . . . . . Robots Disrupted . | . . . . . . . . . . . . . . . . . . . . . . . . . . . Combat Hostiles . | . . . . . . . . . . . . . . . . . . . . . . . . . . . Robots Corrupted 5 | . . . 1 . . . 1 . . . . . . . 1 . . . . . . . . . 2 . Combat Hostiles 3 | . . . 1 . . . 1 . . . . . . . . . . . . . . . . . 1 . Parts Fried 19 | . 2 . 6 2 . . 5 . . . . . . . 1 . . . . . . . . . 3 . Impact Corruptions 1 | . . . . . . . . . . . . . . . 1 . . . . . . . . . . . Robots Melted 5 | . . . . . . . . . . . . . . . . . . . . . 1 . 2 2 . . Combat Hostiles 5 | . . . . . . . . . . . . . . . . . . . . . 1 . 2 2 . . Parts Melted 55 | . . . . . . . . . . . . . . . 2 . . 6 . . 11 . 10 22 4 . Heat Transferred 19982 | 50 300 . 550 100 . . 50 . . . . . . 74 999 . 148 3182 112 . 3884 2023 2829 4830 777 74 Parts Sabotaged . | . . . . . . . . . . . . . . . . . . . . . . . . . . . Parts Stolen . | . . . . . . . . . . . . . . . . . . . . . . . . . . . Parts Stripped . | . . . . . . . . . . . . . . . . . . . . . . . . . . . Power Chain Reactions 13 | . 4 . 7 1 . . 1 . . . . . . . . . . . . . . . . . . . Alert | -11 -10 -10 -9 -9 -8 -8 -8 -8 -8 -6 -6 -6 -6 -5 -5 -5 -5 -5 -4 -4 -4 -4 -4 -4 -3 -3 ------- Run | Yrd Mat Min Mat Min Mat Sto Gar Rec Scr Fac Low Low Dat Pro Fac Upp Upp War Pro Fac Ext Cet Arc Hub Res Gar Maximum Alert Level 4 | . 1 . 1 . . . 4 3 . . . . . . 2 . . . . . 2 2 1 1 . 1 Low Security (%) 56 | 100 96 100 57 100 100 100 15 . . 100 . . . . 29 . . . . 100 46 13 29 62 100 31 Level 1 25 | . 3 . 42 . . . 16 . . . . . . . 38 . . . . . 42 82 70 37 . 68 Level 2 11 | . . . . . . . 27 66 . . . . . . 31 . . . . . 11 4 . . . . Level 3 4 | . . . . . . . 16 33 . . . . . . . . . . . . . . . . . . Level 4 2 | . . . . . . . 24 . . . . . . . . . . . . . . . . . . . Level 5 . | . . . . . . . . . . . . . . . . . . . . . . . . . . . High Security . | . . . . . . . . . . . . . . . . . . . . . . . . . . . Max Security . | . . . . . . . . . . . . . . . . . . . . . . . . . . . Peak Influence 1536 | 10 203 49 395 160 116 34 1536 741 . 31 . . . . 557 . . . . 167 522 448 351 280 195 391 Initial 691 | . . 49 7 145 17 34 3 691 . . . . . . . . . . . 150 48 278 176 44 6 87 Average 255 | 1 111 12 174 55 53 21 714 679 . 10 . . . . 291 . . . . 135 192 268 245 153 106 247 Influence Increases 11346 | 25 500 50 892 144 432 42 1643 307 . 184 115 177 . 155 1341 210 85 1193 84 229 835 606 253 759 676 409 Destroy 0b10 Robot/C 5220 | . 220 40 520 100 280 20 880 60 . 60 40 140 . 40 280 . 20 780 60 40 440 280 80 420 300 120 Destroy 0b10 Robot/NC 445 | 25 35 . 55 . 35 5 . 30 . 15 . . . 10 35 . 5 20 10 . 35 10 45 45 30 . Destroy Leader 682 | . 56 10 148 10 58 2 30 . . 20 . 10 . . 70 . . . . 10 66 20 . 96 76 . Allied During Kill 967 | . . . . . 10 . 41 39 . 2 . 27 . . . . . 318 14 . 219 264 . . . 33 Successful Hack 242 | . 23 . 28 . 14 . 14 26 . 10 . . . . 58 . . . . 10 30 . . 5 12 12 Select Force Hacks 180 | . . . . . . . . 150 . . . . . . 30 . . . . . . . . . . . Disable Machine 570 | . 120 . 45 . 15 15 45 . . 15 . . . . 60 . . . . . . 30 105 75 30 15 Anti-Garrison Action 650 | . . . . . . . 500 . . . . . . . . . . . . . . . . . . 150 Destroy Structure 575 | . 46 . 51 19 20 . 103 2 . 2 . . . . 118 . . . . 4 30 2 8 58 78 34 Advance Influence 150 | . . . . . . . . . . . . . . . . . . . . 150 . . . . . . Partial Spotted 225 | . . . . . . . . . . 45 . . . . 135 . . . . 15 . . . . 15 15 Lose Combat Pursuer 1440 | . . . 45 15 . . 30 . . 15 75 . . 105 555 210 60 75 . . 15 . 15 60 135 30 Influence Decreases 11030 | 25 371 159 537 474 394 119 113 1223 620 159 140 150 27 154 785 493 93 366 1177 130 436 662 568 872 573 210 Entered New Map 4183 | . . 80 13 230 28 49 3 845 620 . 10 . 27 . 1 207 53 266 1093 . 51 220 266 83 8 30 Time Decay 5092 | 25 371 79 474 224 301 70 . 368 . 79 130 150 . 154 384 286 40 100 84 70 305 362 302 349 385 . Search Patrol Dispatched 150 | . . . . . . . . . . . . . . . 150 . . . . . . . . . . . Lost Part 860 | . . . 50 20 . . 50 10 . . . . . . 90 . . . . 10 20 . . 290 180 140 Lost Ally 420 | . . . . . 40 . 60 . . 80 . . . . 10 . . . . 50 60 80 . . . 40 Purge Threat 325 | . . . . . 25 . . . . . . . . . 150 . . . . . . . . 150 . . Squads Dispatched 50 | . 2 . 3 1 1 . . . . 4 . . . . 12 . . . . 1 4 . . 10 12 . Investigation 23 | . 1 . 2 1 1 . . . . 3 . . . . 7 . . . . . 3 . . 3 2 . Extermination 8 | . . . . . . . . . . . . . . . 3 . . . . . . . . 1 4 . Reinforcement 16 | . 1 . 1 . . . . . . 1 . . . . 2 . . . . 1 1 . . 6 3 . Assault . | . . . . . . . . . . . . . . . . . . . . . . . . . . . Garrison 3 | . . . . . . . . . . . . . . . . . . . . . . . . . 3 . Intercept . | . . . . . . . . . . . . . . . . . . . . . . . . . . . Searches Triggered 1 | . . . . . . . . . . . . . . . 1 . . . . . . . . . . . Data Miner Redirects 3 | . . . . . . . . . . . . . . . . . . . . . 1 . . 1 1 . Construction Impeded 2 | . . . . . . . . . . . . . . . 1 . . . . . 1 . . . . . Haulers Reinforced 4 | . . . . . . . . . . . . . . . 1 . . . . . . . . 2 1 . Active Scanning Responses . | . . . . . . . . . . . . . . . . . . . . . . . . . . . Cargo Convoy Interrupts . | . . . . . . . . . . . . . . . . . . . . . . . . . . . Stealth | -11 -10 -10 -9 -9 -8 -8 -8 -8 -8 -6 -6 -6 -6 -5 -5 -5 -5 -5 -4 -4 -4 -4 -4 -4 -3 -3 --------- Run | Yrd Mat Min Mat Min Mat Sto Gar Rec Scr Fac Low Low Dat Pro Fac Upp Upp War Pro Fac Ext Cet Arc Hub Res Gar Distress Signals 12 | . . . 2 . . . . . . 1 . . . . 1 . . 1 1 . 1 2 1 1 1 . Communications Jammed . | . . . . . . . . . . . . . . . . . . . . . . . . . . . Distress Signals . | . . . . . . . . . . . . . . . . . . . . . . . . . . . Times Spotted 454 | . 15 2 38 6 18 1 45 2 . 2 8 5 . 10 66 16 8 30 2 21 24 9 22 36 47 21 Peak Tracking Total 13 | . 2 2 6 4 3 1 7 1 . 2 7 5 . 4 12 6 7 10 2 8 4 5 2 9 13 13 Tactical Retreats 59 | . . . 3 1 . . 2 . . 1 1 . . 5 18 5 2 3 . 3 1 . 1 3 9 1 Traps | -11 -10 -10 -9 -9 -8 -8 -8 -8 -8 -6 -6 -6 -6 -5 -5 -5 -5 -5 -4 -4 -4 -4 -4 -4 -3 -3 ------- Run | Yrd Mat Min Mat Min Mat Sto Gar Rec Scr Fac Low Low Dat Pro Fac Upp Upp War Pro Fac Ext Cet Arc Hub Res Gar Traps Triggered 9 | . 1 . . . 1 1 4 . . 1 . . . . . . . . . 1 . . . . . . Indirectly . | . . . . . . . . . . . . . . . . . . . . . . . . . . . Trap Hack Attempts . | . . . . . . . . . . . . . . . . . . . . . . . . . . . Triggered . | . . . . . . . . . . . . . . . . . . . . . . . . . . . Disarmed . | . . . . . . . . . . . . . . . . . . . . . . . . . . . Reprogrammed . | . . . . . . . . . . . . . . . . . . . . . . . . . . . Reused . | . . . . . . . . . . . . . . . . . . . . . . . . . . . Traps Extracted . | . . . . . . . . . . . . . . . . . . . . . . . . . . . Installed . | . . . . . . . . . . . . . . . . . . . . . . . . . . . Triggered . | . . . . . . . . . . . . . . . . . . . . . . . . . . . Machines | -11 -10 -10 -9 -9 -8 -8 -8 -8 -8 -6 -6 -6 -6 -5 -5 -5 -5 -5 -4 -4 -4 -4 -4 -4 -3 -3 ---------- Run | Yrd Mat Min Mat Min Mat Sto Gar Rec Scr Fac Low Low Dat Pro Fac Upp Upp War Pro Fac Ext Cet Arc Hub Res Gar Machines Disabled 58 | . 9 . 3 1 1 1 11 . . 1 1 . . 1 4 . . 4 . . 1 2 7 5 2 4 Max in Single Turn 3 | . 3 . 1 1 1 1 2 . . 1 1 . . 1 1 . . 2 . . . 1 2 2 1 1 Garrison Access 5 | . . . . . . . . . . 1 . . . . 3 . . . . . . . . . 1 . Garrison Relay 9 | . . . . . . . 6 . . . . . . . . . . . . . . . . . . 3 Phase Generator 1 | . . . . . . . 1 . . . . . . . . . . . . . . . . . . . Machines Repaired . | . . . . . . . . . . . . . . . . . . . . . . . . . . . Machines Dismantled . | . . . . . . . . . . . . . . . . . . . . . . . . . . . Machines Sabotaged . | . . . . . . . . . . . . . . . . . . . . . . . . . . . Overloaded Fab Kills . | . . . . . . . . . . . . . . . . . . . . . . . . . . . Hacking | -11 -10 -10 -9 -9 -8 -8 -8 -8 -8 -6 -6 -6 -6 -5 -5 -5 -5 -5 -4 -4 -4 -4 -4 -4 -3 -3 --------- Run | Yrd Mat Min Mat Min Mat Sto Gar Rec Scr Fac Low Low Dat Pro Fac Upp Upp War Pro Fac Ext Cet Arc Hub Res Gar Machines Accessed 90 | . 4 . 9 1 4 2 2 10 . 8 . . 4 . 22 . 1 1 . 2 5 1 . 4 9 1 Terminals 50 | . 3 . 8 . 3 1 2 5 . 3 . . . . 9 . 1 . . 1 4 1 . 4 4 1 Fabricators 6 | . . . . . . . . . . 2 . . . . 3 . . . . . . . . . 1 . Repair Stations 6 | . . . . . 1 . . . . 1 . . . . 3 . . . . . . . . . 1 . Recycling Units 12 | . 1 . . . . . . 5 . . . . . . 3 . . . . 1 1 . . . 1 . Scanalyzers 3 | . . . 1 . . . . . . 1 . . . . 1 . . . . . . . . . . . Garrison Access 7 | . . . . . . 1 . . . 1 . . . . 3 . . . . . . . . . 2 . Total Hacks 281 | . 15 . 44 1 12 5 4 20 . 13 . . 28 . 65 . 1 1 . 8 18 8 . 14 21 3 Successful 163 | . 8 . 24 1 4 1 1 15 . 3 . . 28 . 40 . 1 1 . 3 10 4 . 10 8 1 Failed 117 | . 7 . 19 . 8 4 3 5 . 10 . . . . 25 . . . . 5 8 4 . 4 13 2 Catastrophic 15 | . 1 . . . . . 1 . . 3 . . . . 5 . . . . . 1 1 . . 3 . Database Lockouts 1 | . . . 1 . . . . . . . . . . . . . . . . . . . . . . . Manual 143 | . 13 . 34 . 6 . . 20 . 5 . . . 1 24 . . 1 . 6 14 1 . 7 11 . Terminals 171 | . 12 . 38 . 11 2 4 14 . 6 . . . . 29 . 1 . . 4 15 8 . 14 10 3 Fabricators 18 | . . . . . . . . . . 3 . . . . 12 . . . . . . . . . 3 . Repair Stations 10 | . . . . . 1 . . . . 1 . . . . 6 . . . . . . . . . 2 . Recycling Units 27 | . 3 . . . . . . 6 . . . . . . 9 . . . . 4 3 . . . 2 . Scanalyzers 13 | . . . 6 . . . . . . 2 . . . . 5 . . . . . . . . . . . Garrison Access 12 | . . . . . . 3 . . . 1 . . . . 4 . . . . . . . . . 4 . Terminal Hacks 70 | . 2 . 8 1 2 . 1 2 . . . . 28 . 10 . 1 1 . 1 3 4 . 5 . 1 Record 16 | . . . . . . . . . . . . . 11 . . . 1 . . . . 4 . . . . Part Schematic 14 | . . . 1 . . . . 1 . . . . 11 . 1 . . . . . . . . . . . Robot Schematic 3 | . . . . . . . . . . . . . 3 . . . . . . . . . . . . . Robot Analysis 5 | . 1 . 2 . . . . 1 . . . . . . . . . . . . 1 . . . . . Prototype ID Bank 4 | . . . . . . . . . . . . . 3 . . . . . . . 1 . . . . . Open Door 2 | . . . . 1 . . . . . . . . . . . . . 1 . . . . . . . . Branch Access Points 2 | . . . 1 . . . . . . . . . . . 1 . . . . . . . . . . . Emergency Access Points 1 | . . . . . . . . . . . . . . . 1 . . . . . . . . . . . Fabricator Index 1 | . . . . . . . . . . . . . . . 1 . . . . . . . . . . . Scanalyzer Index 1 | . . . . . . . . . . . . . . . 1 . . . . . . . . . . . Alert Level 3 | . . . . . 1 . . . . . . . . . 1 . . . . . . . . 1 . . Unreport Threat 3 | . . . . . 1 . . . . . . . . . 1 . . . . . . . . 1 . . Locate Traps 2 | . . . . . . . . . . . . . . . . . . . . 1 1 . . . . . Patrol Status 1 | . . . . . . . . . . . . . . . . . . . . . . . . 1 . . Transport Status 1 | . . . 1 . . . . . . . . . . . . . . . . . . . . . . . Recall Investigation 1 | . . . 1 . . . . . . . . . . . . . . . . . . . . . . . Recall Extermination 1 | . . . . . . . . . . . . . . . 1 . . . . . . . . . . . Recall Reinforcements 2 | . . . . . . . . . . . . . . . 1 . . . . . . . . 1 . . Hauler Manifests 1 | . . . 1 . . . . . . . . . . . . . . . . . . . . . . . Zone Layout 4 | . 1 . 1 . . . . . . . . . . . 1 . . . . . . . . 1 . . Garrison Registry 2 | . . . . . . . 1 . . . . . . . . . . . . . . . . . . 1 Fabricator Hacks 6 | . . . . . . . . . . . . . . . 5 . . . . . . . . . 1 . Load Schematic 4 | . . . . . . . . . . . . . . . 3 . . . . . . . . . 1 . Build 2 | . . . . . . . . . . . . . . . 2 . . . . . . . . . . . Repair Station Hacks 2 | . . . . . . . . . . . . . . . 2 . . . . . . . . . . . Scan Component 1 | . . . . . . . . . . . . . . . 1 . . . . . . . . . . . Repair 1 | . . . . . . . . . . . . . . . 1 . . . . . . . . . . . Recycling Unit Hacks 2 | . . . . . . . . . . . . . . . 1 . . . . . . . . . 1 . Retrieve Components 2 | . . . . . . . . . . . . . . . 1 . . . . . . . . . 1 . Scanalyzer 9 | . . . 6 . . . . . . . . . . . 3 . . . . . . . . . . . Insert Component 4 | . . . 3 . . . . . . . . . . . 1 . . . . . . . . . . . Analyze 5 | . . . 3 . . . . . . . . . . . 2 . . . . . . . . . . . Garrison Access Hacks 7 | . . . . . . 1 . . . 1 . . . . 3 . . . . . . . . . 2 . Unlock Access 2 | . . . . . . 1 . . . . . . . . . . . . . . . . . . 1 . Seal Access 5 | . . . . . . . . . . 1 . . . . 3 . . . . . . . . . 1 . Unauthorized Hacks 67 | . 6 . 10 . 2 . . 13 . 2 . . . . 16 . . . . 2 7 . . 5 4 . Terminals 43 | . 4 . 10 . 1 . . 8 . 1 . . . . 4 . . . . 2 5 . . 5 3 . Track 1 | . . . . . . . . . . . . . . . . . . . . . 1 . . . . . Assimilate 2 | . . . . . . . . . . . . . . . 1 . . . . . . . . . 1 . Botnet 19 | . 1 . 5 . . . . 3 . . . . . . 3 . . . . 1 2 . . 2 2 . Skim 19 | . 3 . 5 . 1 . . 5 . 1 . . . . . . . . . 1 2 . . 1 . . Sabotage 2 | . . . . . . . . . . . . . . . . . . . . . . . . 2 . . Fabricators 4 | . . . . . . . . . . . . . . . 4 . . . . . . . . . . . Report 1 | . . . . . . . . . . . . . . . 1 . . . . . . . . . . . Prioritize 2 | . . . . . . . . . . . . . . . 2 . . . . . . . . . . . Haulers 1 | . . . . . . . . . . . . . . . 1 . . . . . . . . . . . Repair Stations 6 | . . . . . 1 . . . . 1 . . . . 3 . . . . . . . . . 1 . Mechanics 1 | . . . . . . . . . . . . . . . 1 . . . . . . . . . . . Patch 5 | . . . . . 1 . . . . 1 . . . . 2 . . . . . . . . . 1 . Recycling Units 14 | . 2 . . . . . . 5 . . . . . . 5 . . . . . 2 . . . . . Monitor 2 | . 1 . . . . . . . . . . . . . 1 . . . . . . . . . . . Reject 2 | . . . . . . . . . . . . . . . 1 . . . . . 1 . . . . . Recyclers 2 | . 1 . . . . . . . . . . . . . 1 . . . . . . . . . . . Mask 2 | . . . . . . . . . . . . . . . 1 . . . . . 1 . . . . . Tunnel 6 | . . . . . . . . 5 . . . . . . 1 . . . . . . . . . . . Scanalyzers . | . . . . . . . . . . . . . . . . . . . . . . . . . . . Garrison Access . | . . . . . . . . . . . . . . . . . . . . . . . . . . . Data Cores Recovered . | . . . . . . . . . . . . . . . . . . . . . . . . . . . Used . | . . . . . . . . . . . . . . . . . . . . . . . . . . . Hacking Detections 60 | . 3 . 9 . 3 2 2 2 . 6 . . . . 14 . . . . 2 4 . . 4 8 1 Full Trace Events 12 | . . . 3 . . . 1 . . 1 . . . . 4 . . . . . 1 . . 1 1 . Feedback Events 2 | . . . . . . . 1 . . . . . . . 1 . . . . . . . . . . . Corruption 2 | . . . . . . . 1 . . . . . . . 1 . . . . . . . . . . . Feedback Blocked . | . . . . . . . . . . . . . . . . . . . . . . . . . . . Robot Schematics Acquired 3 | . . . . . . . . . . . . . 3 . . . . . . . . . . . . . Robots Built . | . . . . . . . . . . . . . . . . . . . . . . . . . . . Authchips . | . . . . . . . . . . . . . . . . . . . . . . . . . . . Time . | . . . . . . . . . . . . . . . . . . . . . . . . . . . Total Robot Build Rating . | . . . . . . . . . . . . . . . . . . . . . . . . . . . Part Schematics Acquired 18 | . . . 4 . . . . 1 . . . . 11 . 2 . . . . . . . . . . . Parts Built 2 | . . . . . . . . . . . . . . . 2 . . . . . . . . . . . Authchips . | . . . . . . . . . . . . . . . . . . . . . . . . . . . Time 166 | . . . . . . . . . . . . . . . 166 . . . . . . . . . . . Total Part Build Rating 18 | . . . . . . . . . . . . . . . 18 . . . . . . . . . . . Parts Repaired 1 | . . . . . . . . . . . . . . . 1 . . . . . . . . . . . Time 44 | . . . . . . . . . . . . . . . 44 . . . . . . . . . . . Parts Recycled . | . . . . . . . . . . . . . . . . . . . . . . . . . . . Recycled Matter . | . . . . . . . . . . . . . . . . . . . . . . . . . . . Retrieved Matter . | . . . . . . . . . . . . . . . . . . . . . . . . . . . Retrieved Components 9 | . . . . . . . . . . . . . . . 9 . . . . . . . . . . . Parts Scanalyzed 4 | . . . 3 . . . . . . . . . . . 1 . . . . . . . . . . . Part Schematics Acquired 4 | . . . 3 . . . . . . . . . . . 1 . . . . . . . . . . . Parts Damaged 1 | . . . 1 . . . . . . . . . . . . . . . . . . . . . . . Bothacking | -11 -10 -10 -9 -9 -8 -8 -8 -8 -8 -6 -6 -6 -6 -5 -5 -5 -5 -5 -4 -4 -4 -4 -4 -4 -3 -3 ------------ Run | Yrd Mat Min Mat Min Mat Sto Gar Rec Scr Fac Low Low Dat Pro Fac Upp Upp War Pro Fac Ext Cet Arc Hub Res Gar Used RIF Installer . | . . . . . . . . . . . . . . . . . . . . . . . . . . . Robots Hacked . | . . . . . . . . . . . . . . . . . . . . . . . . . . . Non-combat . | . . . . . . . . . . . . . . . . . . . . . . . . . . . Combat . | . . . . . . . . . . . . . . . . . . . . . . . . . . . Robot Hacks Applied . | . . . . . . . . . . . . . . . . . . . . . . . . . . . Relay Couplers Released 38 | . . . . . . . 27 . . . . . . . . . . . . . . . . . . 11 Machine Destruction 35 | . . . . . . . 24 . . . . . . . . . . . . . . . . . . 11 Programmers 3 | . . . . . . . 3 . . . . . . . . . . . . . . . . . . . Fabnet Peak Effective % . | . . . . . . . . . . . . . . . . . . . . . . . . . . . Robots Rewired 26 | . . . . . . . 9 . . . 3 . . . . . . 5 . . 6 . . . . 3 Allies Hacked 4 | . . . . . . . 1 . . . . . . 2 . . . . . . . . . . . 1 Hacks Repelled . | . . . . . . . . . . . . . . . . . . . . . . . . . . . Allies | -11 -10 -10 -9 -9 -8 -8 -8 -8 -8 -6 -6 -6 -6 -5 -5 -5 -5 -5 -4 -4 -4 -4 -4 -4 -3 -3 -------- Run | Yrd Mat Min Mat Min Mat Sto Gar Rec Scr Fac Low Low Dat Pro Fac Upp Upp War Pro Fac Ext Cet Arc Hub Res Gar Total Allies 41 | . . . . 2 . . 9 . . . 3 . . . 1 . . 5 . . 13 5 . . . 3 Largest Group 11 | . . . . 2 2 . 6 6 6 6 3 3 2 2 1 . . 5 3 3 10 11 1 . . 3 Highest-Rated Group 818 | . . . . 49 49 . 141 141 141 141 87 87 58 58 26 . . 246 156 156 537 818 159 . . 144 Highest-Rated Ally 159 | . . . . 31 31 . 40 31 31 31 29 29 29 29 26 . . 64 64 64 159 159 159 . . 48 Initial Warlord ECA Mod 152 | . . . . . . . . 11 11 9 9 9 9 8 8 8 8 8 7 7 7 7 7 7 6 6 Total Orders . | . . . . . . . . . . . . . . . . . . . . . . . . . . . Ally Attacks 252 | . . . . . 11 . 9 . . 20 . 16 . 2 . . . 32 15 8 76 55 1 . . 7 Total Damage 6428 | . . . . . 105 . 432 . . 507 . 173 . 20 . . . 982 248 55 1820 1669 44 . . 373 Kills 53 | . . . . . . . 3 . . 3 . 4 . . . . . 8 3 2 14 13 . . . 3 Allies Corrupted . | . . . . . . . . . . . . . . . . . . . . . . . . . . . Allies Melted 1 | . . . . . . . . . . 1 . . . . . . . . . . . . . . . . Intel | -11 -10 -10 -9 -9 -8 -8 -8 -8 -8 -6 -6 -6 -6 -5 -5 -5 -5 -5 -4 -4 -4 -4 -4 -4 -3 -3 ------- Run | Yrd Mat Min Mat Min Mat Sto Gar Rec Scr Fac Low Low Dat Pro Fac Upp Upp War Pro Fac Ext Cet Arc Hub Res Gar Active Infowar (turns) 8720 | 20 1211 368 557 546 294 . . . . 225 276 314 690 453 821 622 94 64 . 79 139 . . 522 1189 236 Optics 560 | . . . . . . . . . . . . . . . . . . . . . . . . . 324 236 Sensors 482 | . . . . . . . . . . . . . . . . . . 4 . . . . . . 441 37 IFF 1554 | . . . . . . . . . . 53 273 314 690 224 . . . . . . . . . . . . Terrain 2762 | 20 253 . . . . . . . . . . 248 690 453 508 . . . . . . . . 177 413 . Structural 548 | . . . . . . . . . . 207 276 65 . . . . . . . . . . . . . . Seismic 4163 | . 958 368 557 546 294 . . . . 163 . . . . 521 609 94 53 . . . . . . . . T.N.C. 1071 | . . . . . . . . . . . . . . . . . . . . . . . . 503 568 . ECM 309 | . . . . . . . . . . . . . . . 21 13 . 7 . 79 139 . . . 50 . Robot Analysis Total 5 | . 1 . 2 . . . . 1 . . . . . . . . . . . . 1 . . . . . Derelict Logs Recovered 10 | . . 1 . 2 . . . . . . 2 2 . . . 2 . . 1 . . . . . . . Drone Launches 1 | . . . . . . . . . . . . . . . . . . 1 . . . . . . . . Drone Recoveries . | . . . . . . . . . . . . . . . . . . . . . . . . . . . Exploration | -11 -10 -10 -9 -9 -8 -8 -8 -8 -8 -6 -6 -6 -6 -5 -5 -5 -5 -5 -4 -4 -4 -4 -4 -4 -3 -3 ------------- Run | Yrd Mat Min Mat Min Mat Sto Gar Rec Scr Fac Low Low Dat Pro Fac Upp Upp War Pro Fac Ext Cet Arc Hub Res Gar Turns Passed 17699 | 115 1212 368 1491 624 703 150 1578 851 1008 239 276 314 690 453 975 622 94 654 268 150 1048 833 668 842 1237 236 Spaces Moved 14553 | 44 535 140 741 310 338 79 678 504 621 646 603 567 111 817 1809 832 234 1085 278 350 843 450 345 344 1040 209 Core 9 | 5 . . . . . . . . . . . . . . . . . . . . . . . 4 . . Treads 3092 | 39 535 140 11 . 1 . 243 504 621 . . . . . . . . . . . . 443 302 253 . . Legs 5 | . . . . . . . . . . . . . . . . . . . . . 4 . . 1 . . Wheels 1915 | . . . 730 310 337 79 435 . . . . . . 13 . . . . . . . . . 11 . . Hover 6915 | . . . . . . . . . . . . . . 114 1809 832 234 1085 278 350 839 7 43 75 1040 209 Flight 2617 | . . . . . . . . . . 646 603 567 111 690 . . . . . . . . . . . . Fastest Speed 17 | 50 160 240 120 120 150 150 150 160 160 24 24 24 24 24 17 17 17 26 94 21 94 116 94 45 33 61 Average Speed 84 | 147 197 240 138 144 151 154 163 160 160 25 24 24 24 27 29 27 27 42 94 35 106 166 152 142 63 63 Slowest Speed 600 | 160 240 240 320 150 320 165 320 160 160 164 24 24 24 180 105 28 28 172 94 94 260 245 160 600 230 150 Overloaded Moves 91 | . . . . . . . . . . . . . . . 15 19 7 . . 49 . . . . 1 . Propulsion Burnouts . | . . . . . . . . . . . . . . . . . . . . . . . . . . . Robots Hopped 4 | . . . . . . . . . . 1 . . . 3 . . . . . . . . . . . . Potential Cave-ins . | . . . . . . . . . . . . . . . . . . . . . . . . . . . Cave-ins Triggered 1 | . . . 1 . . . . . . . . . . . . . . . . . . . . . . . Exploration Rate (%) 54 | 3 79 49 70 58 23 17 75 86 52 18 71 66 69 64 41 70 42 90 38 15 87 79 96 36 30 45 Regions Visited 26 Branch Regions 17 Pre-discovered Areas 13 | . . 2 1 1 . . . 5 . . 2 . 1 . 1 . . . . . . . . . . . Known Exits Taken 10 | . . . 1 1 1 1 . . . 1 1 . . . 1 1 . . . 1 . . . . 1 . Unknown Exits Taken 15 | 1 1 1 . . . . . 1 1 . . 1 1 1 . . 1 1 1 . 1 1 1 1 . . Scrap Searched 17 | . . 1 . . . . . . 6 . 4 2 . . . . 3 . 1 . . . . . . . Spaces Dug 113 | . . . . . . . 5 . . 2 2 . . . 55 28 . . . 2 . . . . 19 . Terrain Destroyed 584 | . 44 . 63 17 16 . 79 . . 2 2 . . 2 64 31 3 163 . 2 . 10 4 33 47 2 Melee 26 | . . . . . . . 5 . . 2 2 . . . 10 5 . . . 2 . . . . . . Projectile 160 | . . . . . . . . . . . . . . 2 54 26 3 . . . . . 4 23 46 2 AOE 397 | . 44 . 63 17 16 . 74 . . . . . . . . . . 163 . . . 10 . 10 . . Terrain Rammed 2 | . . . . . . . . . . . . . . . . . . . . . . . . . 1 1 Walls Destroyed 2 | . . . . . . . . . . . . . . . . . . . . . . . . . 1 1 Machines Disabled . | . . . . . . . . . . . . . . . . . . . . . . . . . . . Actions | -11 -10 -10 -9 -9 -8 -8 -8 -8 -8 -6 -6 -6 -6 -5 -5 -5 -5 -5 -4 -4 -4 -4 -4 -4 -3 -3 --------- Run | Yrd Mat Min Mat Min Mat Sto Gar Rec Scr Fac Low Low Dat Pro Fac Upp Upp War Pro Fac Ext Cet Arc Hub Res Gar Total 18675 | 69 618 155 1076 459 440 100 989 529 638 696 715 729 773 1019 2102 1189 254 1249 282 371 964 526 438 534 1480 281 Wait 2147 | 2 19 1 186 118 16 1 47 6 . . 77 144 663 101 79 320 15 29 4 . 22 10 17 23 225 22 Move 14521 | 43 534 139 740 309 337 78 677 503 620 643 602 566 110 811 1808 831 233 1084 277 349 842 449 344 344 1039 209 Hop 3 | . . . . . . . . . . 1 . . . 2 . . . . . . . . . . . . Pick Up 186 | 3 18 3 28 4 12 4 3 1 5 5 4 1 . 18 11 . 1 20 . 2 3 11 4 2 22 1 Fast Attach 202 | 7 . 1 7 1 2 1 5 1 2 5 . 3 . 14 28 . 1 16 . 4 5 12 10 31 36 10 Attach 78 | . 1 1 8 2 2 . 2 . 3 10 1 . . 4 6 . . 3 . 3 1 2 3 11 11 4 Detach 49 | . . . 4 . . . . . 1 . . . . 10 1 . . 3 . 2 1 4 4 11 5 3 Swap 162 | 2 3 2 14 9 16 6 17 2 1 6 2 1 . 7 19 2 . 8 . 5 6 3 . 2 28 1 Drop 281 | . 5 . 28 4 15 6 5 3 6 12 5 5 . 32 30 . . 41 . 4 8 26 13 6 24 3 Fire 755 | 12 38 8 61 12 40 3 95 13 . 5 9 9 . 19 97 31 4 23 1 . 14 9 42 102 89 19 Melee 57 | . . . . . . 1 15 . . 9 3 . . 1 21 5 . . . 2 . . . . . . Ram 6 | . . . . . . . . . . . . . . . 2 . . . . . . . . . 1 3 Kick . | . . . . . . . . . . . . . . . . . . . . . . . . . . . Crush 3 | . . . . . . . . . . . . . . . . . . . . . . . 1 2 . . Escape Stasis 8 | . . . . . . . 8 . . . . . . . . . . . . . . . . . . . Rewire 217 | . . . . . . . 115 . . . 12 . . . . . . 22 . . 62 . . . . 6 Trap . | . . . . . . . . . . . . . . . . . . . . . . . . . . . Miscellaneous . | . . . . . . . . . . . . . . . . . . . . . . . . . . . Route ------- -11/Scrapyard -10/Materials (discovered 5 exits: *Mat x3 / [*Min] / [*Sub]) -10/Mines -9/Materials (discovered 5 exits: *Mat x3 / *Min x2) -9/Mines (discovered 2 exits: *Mat / [*Zio]) -8/Materials (discovered 2 exits: *Sto x2) -8/Storage -8/Garrison (discovered 3 exits: *Rec x3) -8/Recycling (discovered 2 exits: *Fac / *Scr) -8/Scraptown -6/Factory (discovered 2 exits: *Low x2) -6/Lower Caves -6/Lower Caves (discovered 2 exits: *Fac / *Dat) -6/Data Miner -5/Proximity Caves -5/Factory (discovered 4 exits: *Fac x2 / *Upp x2) -5/Upper Caves -5/Upper Caves -5/Warlord -4/Proximity Caves -4/Factory (discovered 3 exits: *Res / Upp / *Ext) -4/Extension (discovered 2 exits: *Res / *Cet) -4/Cetus (discovered 2 exits: *Res / [*Arc]) -4/Archives (discovered 3 exits: *Res / *Hub x2) -4/Hub_04(d) -3/Research -3/Garrison (discovered 3 exits: [*Arm x3]) History --------- Turn | Location | Event 42 | -11/Scrapyard | Discovered new exit (range 14) 116 | -11/Scrapyard | Entered Materials 337 | -10/Materials | Build established: Mutant 381 | -10/Materials | Discovered new exit (range 5) 393 | -10/Materials | Discovered new exit (range 16) 474 | -10/Materials | Discovered new exit (range 16) 777 | -10/Materials | Discovered new exit (range 13) 1246 | -10/Materials | Discovered new exit (range 13) 1328 | -10/Materials | Entered Mines 1363 | -10/Mines | Met a Derelict bent on vengeance 1511 | -10/Mines | Learned location of Storage (-8) 1619 | -10/Mines | Discovered new exit (range 6) 1696 | -10/Mines | Entered Materials 1696 | -9/Materials | Evolved 2 slots: Propulsion x1, Weapon x1 1946 | -9/Materials | Discovered new exit (range 16) 2014 | -9/Materials | Build established: Gunner 2090 | -9/Materials | Discovered new exit (range 11) 2743 | -9/Materials | Identified exit to Mines 2792 | -9/Materials | Identified exit to Materials 2869 | -9/Materials | Learned Storage stockpile data 2909 | -9/Materials | Crushed by falling debris 2909 | -9/Materials | Core integrity fell below 50% 2934 | -9/Materials | Learned location of Recycling (-8) 2972 | -9/Materials | Central database locked down 2990 | -9/Materials | Learned Recycling recycling unit intel 3161 | -9/Materials | Learned location of 2 exits from Materials 3187 | -9/Materials | Entered Mines 3199 | -9/Mines | Core integrity fell below 20% 3267 | -9/Mines | Assembled infested the area 3282 | -9/Mines | Met a Derelict shopkeep closing up shop 3443 | -9/Mines | Learned location of Zion (-7) 3669 | -9/Mines | A Derelict revealed a hidden shortcut to a safe place 3795 | -9/Mines | Discovered exit to Materials (range 8) 3811 | -9/Mines | Entered Materials 3811 | -8/Materials | Accompanied by 2 allies 3811 | -8/Materials | Evolved 2 slots: Propulsion x1, Weapon x1 3812 | -8/Materials | Identified exit to Storage 3816 | -8/Materials | Led the pair of lost Derelicts to an unsafe place 4514 | -8/Materials | Entered Storage 4652 | -8/Storage | Identified exit to Garrison 4664 | -8/Storage | Entered Garrison 4684 | -8/Garrison | Triggered checkpoint 4848 | -8/Garrison | Triggered checkpoint 4904 | -8/Garrison | Garrison Relay disabled 5007 | -8/Garrison | Triggered checkpoint 5008 | -8/Garrison | Triggered checkpoint 5134 | -8/Garrison | Discovered new exit (range 14) 5144 | -8/Garrison | Spotted B-75 Beast 5177 | -8/Garrison | Destroyed B-75 Beast 5212 | -8/Garrison | Lost 4 parts (1n1u2w) 5264 | -8/Garrison | Triggered checkpoint 5286 | -8/Garrison | Garrison Relay disabled 5483 | -8/Garrison | Discovered new exit (range 26) 5483 | -8/Garrison | Discovered new exit (range 28) 5483 | -8/Garrison | Discovered new exit (range 60) 5513 | -8/Garrison | Triggered checkpoint 5594 | -8/Garrison | Phase Generator disabled 5620 | -8/Garrison | Garrison Relay disabled 5714 | -8/Garrison | Triggered checkpoint 5721 | -8/Garrison | Build established: Scavenger-Gunner 5725 | -8/Garrison | Garrison Relay disabled 5882 | -8/Garrison | Triggered checkpoint 5901 | -8/Garrison | Garrison Relay disabled 6006 | -8/Garrison | Triggered checkpoint 6028 | -8/Garrison | Triggered checkpoint 6039 | -8/Garrison | Garrison Relay disabled 6242 | -8/Garrison | Entered Recycling 6242 | -8/Recycling | Accompanied by 6 allies 6243 | -8/Recycling | Loaded intel: 5 recycling unit locations 6523 | -8/Recycling | Discovered new exit (range 13) 6738 | -8/Recycling | Learned 2 Lower Caves zone layouts 6775 | -8/Recycling | Learned Factory fabricator intel 6800 | -8/Recycling | Learned 4 Lower Caves zone layouts 6816 | -8/Recycling | Learned Storage terminal intel 6820 | -8/Recycling | Learned 2 Storage zone layouts 6835 | -8/Recycling | Learned Factory emergency access door positions 6942 | -8/Recycling | Scanned before Scraplab entrance 7070 | -8/Recycling | Entered Scraplab 7083 | -8/Recycling | Discovered new exit (range 4) 7093 | -8/Recycling | Entered Scraptown 7093 | -8/Scraptown | Accompanied by 6 allies 7343 | -8/Scraptown | Discovered new exit (range 11) 7382 | -8/Scraptown | Build established: Commander-Mutant 7481 | -8/Scraptown | Visited Spacefarers 7707 | -8/Scraptown | System corruption cleaned by C-Scrubber 7807 | -8/Scraptown | Visited Bundlers 7984 | -8/Scraptown | Build established: Scavenger-Gunner 7999 | -8/Scraptown | Visited Cyclists 8101 | -8/Scraptown | Entered Factory 8101 | -6/Factory | Accompanied by 6 allies 8101 | -6/Factory | Evolved 4 slots: Propulsion x1, Utility x2, Weapon x1 8102 | -6/Factory | Identified exit to Lower Caves 8104 | -6/Factory | Loaded intel: 6 fabricator locations 8340 | -6/Factory | Entered Lower Caves 8347 | -6/Lower Caves | Encountered a Warlord checkpoint 8351 | -6/Lower Caves | Met a Warlord Commander 8352 | -6/Lower Caves | Learned location of Warlord (-5) 8429 | -6/Lower Caves | Warlord Commander delivered Encrypted Comm Array 8431 | -6/Lower Caves | Found Encrypted Comm Array 8447 | -6/Lower Caves | Identified exit to Lower Caves 8455 | -6/Lower Caves | Entered a destroyed Warlord outpost 8496 | -6/Lower Caves | Attacked by a delusional Derelict stockpiling Unaware 8616 | -6/Lower Caves | Entered another Lower Caves area 8616 | -6/Lower Caves | Accompanied by 3 allies 8664 | -6/Lower Caves | Discovered new exit (range 13) 8750 | -6/Lower Caves | Learned Factory garrison access intel 8763 | -6/Lower Caves | Discovered new exit (range 7) 8874 | -6/Lower Caves | Learned Factory trap positions 8930 | -6/Lower Caves | Entered Data Miner 8930 | -6/Data Miner | Accompanied by 2 allies 8930 | -6/Data Miner | Discovered new exit (range 7) 8935 | -6/Data Miner | Met Data Miner 8940 | -6/Data Miner | Learned location of Section 7 (-2) 8940 | -6/Data Miner | Acquired the access code to Warlord's prototype stash 8944 | -6/Data Miner | Received God Mode back door access code from Data Miner 8962 | -6/Data Miner | Build established: Scavenger-Sprinter 9620 | -6/Data Miner | Entered Proximity Caves 9620 | -5/Proximity Caves | Accompanied by 2 allies 9625 | -5/Proximity Caves | Acquired the password to a Derelict Tinkerer's latest research 9626 | -5/Proximity Caves | Found Prototype Special Weapon 9626 | -5/Proximity Caves | Identified Molecular Deconstructor 9716 | -5/Proximity Caves | Spotted B-75 Beast 9820 | -5/Proximity Caves | Discovered new exit (range 10) 9830 | -5/Proximity Caves | Encountered a Derelict guarding a broken Freighter 9844 | -5/Proximity Caves | Found Prototype Device 9844 | -5/Proximity Caves | Identified Adv. EM Shield 9925 | -5/Proximity Caves | Found Prototype Hackware 9976 | -5/Proximity Caves | Found Adv. EM Shield 10004 | -5/Proximity Caves | Build established: Sprinter 10073 | -5/Proximity Caves | Entered Factory 10073 | -5/Factory | Evolved 2 slots: Power x1, Utility x1 10074 | -5/Factory | Loaded intel: 100 trap records 10075 | -5/Factory | Loaded intel: 4 garrison access locations 10081 | -5/Factory | Identified Exp. Hacking Suite 10126 | -5/Factory | Repaired Mak. Power Source? 10372 | -5/Factory | Lost 3 parts (1p2w) 10455 | -5/Factory | Discovered new exit (range 12) 10479 | -5/Factory | Identified exit to Upper Caves 10557 | -5/Factory | Lost 4 parts (1n1u2w) 10593 | -5/Factory | Build established: Hacker-Sprinter 10650 | -5/Factory | Fabricated Cld. Linear Gravjet (x1) 10673 | -5/Factory | Search patrols dispatched 10757 | -5/Factory | Discovered new exit (range 5) 10876 | -5/Factory | Fabricated Cld. Linear Gravjet (x1) 11048 | -5/Factory | Entered Upper Caves 11052 | -5/Upper Caves | Identified exit to Upper Caves 11286 | -5/Upper Caves | Learned location of 1 exit from Factory 11670 | -5/Upper Caves | Entered another Upper Caves area 11673 | -5/Upper Caves | Encountered a Warlord checkpoint 11739 | -5/Upper Caves | Attracted the attention of an 0b10 checkpoint 11759 | -5/Upper Caves | Discovered new exit (range 12) 11764 | -5/Upper Caves | Entered Warlord 11774 | -5/Warlord | System corruption cleaned by Quarantine Array 11818 | -5/Warlord | Found Signal Generator 11831 | -5/Warlord | Found Prototype Device 11831 | -5/Warlord | Identified Minesniffer Drone Bay 11844 | -5/Warlord | Found Minesniffer Drone Bay 11891 | -5/Warlord | Met Warlord 11913 | -5/Warlord | Opened Warlord's prototype stash 11916 | -5/Warlord | Warlord's base attacked by MAIN.C 11919 | -5/Warlord | Found Prototype Device 11919 | -5/Warlord | Identified Exp. Focal Shield 11927 | -5/Warlord | Found Prototype Reactor 11927 | -5/Warlord | Identified Vortex Chain Reactor 11977 | -5/Warlord | Found Prototype Energy Gun 11977 | -5/Warlord | Identified Plasma Storm 12032 | -5/Warlord | Found Prototype Launcher 12032 | -5/Warlord | Identified Vortex Catalyst Activator 12035 | -5/Warlord | Found Prototype Energy Cannon 12035 | -5/Warlord | Identified Vortex Driver 12038 | -5/Warlord | Found Vortex Driver 12040 | -5/Warlord | Found Vortex Driver 12048 | -5/Warlord | Found Vortex Driver 12260 | -5/Warlord | Warlord forces counterattacked 12286 | -5/Warlord | Destroyed 17 combat bots 12311 | -5/Warlord | Destroyed Executioner 12338 | -5/Warlord | Spotted Executioner 12339 | -5/Warlord | Lost 3 allies 12344 | -5/Warlord | Destroyed Executioner 12364 | -5/Warlord | Spotted Executioner 12394 | -5/Warlord | Discovered new exit (range 9) 12405 | -5/Warlord | Destroyed 16 combat bots 12418 | -5/Warlord | Entered Proximity Caves 12418 | -4/Proximity Caves | Accompanied by 3 allies 12489 | -4/Proximity Caves | Spotter reported a threat 12564 | -4/Proximity Caves | Build established: Hacker-Gunner 12647 | -4/Proximity Caves | Discovered new exit (range 6) 12665 | -4/Proximity Caves | Learned Research security intel 12686 | -4/Proximity Caves | Entered Factory 12686 | -4/Factory | Accompanied by 3 allies 12686 | -4/Factory | Evolved 2 slots: Propulsion x1, Utility x1 12687 | -4/Factory | Identified exit to Extension 12688 | -4/Factory | Identified exit to Upper Caves 12746 | -4/Factory | Spotted B-86 Titan 12801 | -4/Factory | Discovered new exit (range 5) 12836 | -4/Factory | Entered Extension 12888 | -4/Extension | Rescued a captive Derelict 13005 | -4/Extension | Rescued a captive Derelict 13125 | -4/Extension | Rescued a captive Derelict 13251 | -4/Extension | Spotted B-86 Titan 13260 | -4/Extension | Destroyed B-86 Titan 13278 | -4/Extension | Spotted B-86 Titan 13282 | -4/Extension | Destroyed B-86 Titan 13319 | -4/Extension | Destroyed 7 combat bots 13501 | -4/Extension | Incoming investigation squad redirected 13643 | -4/Extension | Rescued a captive Derelict 13739 | -4/Extension | Rescued a captive Derelict 13739 | -4/Extension | Rescued a captive Derelict 13755 | -4/Extension | Rescued A7 13835 | -4/Extension | Build established: Commander-Gunner 13852 | -4/Extension | Discovered new exit (range 10) 13853 | -4/Extension | Discovered new exit (range 6) 13884 | -4/Extension | Entered Cetus 13884 | -4/Cetus | Accompanied by 9 allies (A7) 13889 | -4/Cetus | Acquired a Cetus Manufacturing Module code from A7 13909 | -4/Cetus | Spotted Cetus Guard 13912 | -4/Cetus | Spotted Cetus Guard 13912 | -4/Cetus | Spotted Cetus Guard 13914 | -4/Cetus | Spotted Cetus Guard 13919 | -4/Cetus | Allies destroyed Cetus Guard 13921 | -4/Cetus | Allies destroyed Cetus Guard 13925 | -4/Cetus | Allies destroyed Cetus Guard 13929 | -4/Cetus | Allies destroyed Cetus Guard 14318 | -4/Cetus | Escorted A7 to Cetus Mainframe 14339 | -4/Cetus | Started Cetus Manufacturing Module 14364 | -4/Cetus | Manufactured an Enhanced Grunt 14389 | -4/Cetus | Manufactured an Enhanced Grunt 14410 | -4/Cetus | Discovered new exit (range 16) 14414 | -4/Cetus | Manufactured an Enhanced Grunt 14439 | -4/Cetus | Manufactured an Enhanced Grunt 14439 | -4/Cetus | Spotted Cetus Guard 14439 | -4/Cetus | Spotted Cetus Guard 14444 | -4/Cetus | Destroyed Cetus Guard 14445 | -4/Cetus | Spotted Cetus Guard 14447 | -4/Cetus | Destroyed Cetus Guard 14451 | -4/Cetus | Allies destroyed Cetus Guard 14451 | -4/Cetus | Spotted Cetus Guard 14453 | -4/Cetus | Destroyed Cetus Guard 14464 | -4/Cetus | Manufactured an Enhanced Grunt 14473 | -4/Cetus | Discovered new exit (range 15) 14481 | -4/Cetus | Met Revision 17 14634 | -4/Cetus | Security sweep announced 14681 | -4/Cetus | Cetus Manufacturing Module disabled 14717 | -4/Cetus | Entered Archives 14717 | -4/Archives | Accompanied by 1 ally (A7) 14722 | -4/Archives | Received a hacking code to weaken MAIN.C 14935 | -4/Archives | Discovered new exit (range 15) 14981 | -4/Archives | Discovered new exit (range 16) 15070 | -4/Archives | Discovered new exit (range 15) 15110 | -4/Archives | Build established: Scavenger-Mutant 15385 | -4/Archives | Entered Hub_04(d) 15437 | -4/Hub_04(d) | Discovered new exit (range 15) 15509 | -4/Hub_04(d) | Destroyed 8 combat bots 15686 | -4/Hub_04(d) | Lost 11 parts (1p4n2u4w) 15910 | -4/Hub_04(d) | Incoming investigation squad redirected 16078 | -4/Hub_04(d) | Core integrity fell below 50% 16111 | -4/Hub_04(d) | Lost 4 parts (1p2n1w) 16207 | -4/Hub_04(d) | Core integrity fell below 20% 16227 | -4/Hub_04(d) | Entered Research 16227 | -3/Research | Evolved 2 slots: Utility x2 16251 | -3/Research | Lost 15 parts (2p6n3u4w) 16540 | -3/Research | Incoming investigation squad redirected 16564 | -3/Research | System corruption reached 10% 16585 | -3/Research | Lost 4 parts (2p2n) 16660 | -3/Research | Garrison activated, responded to threat 16727 | -3/Research | Lost 5 parts (1p1u3w) 16825 | -3/Research | Lost 3 parts (1n2w) 17422 | -3/Research | System corruption reached 30% 17457 | -3/Research | Identified exit to Garrison 17464 | -3/Research | Entered Garrison 17482 | -3/Garrison | Lost 3 parts (1u2w) 17486 | -3/Garrison | Discovered new exit (range 68) 17486 | -3/Garrison | Discovered new exit (range 83) 17486 | -3/Garrison | Discovered new exit (range 77) 17488 | -3/Garrison | Triggered checkpoint 17526 | -3/Garrison | Garrison Relay disabled 17536 | -3/Garrison | Triggered checkpoint 17584 | -3/Garrison | Garrison Relay disabled 17619 | -3/Garrison | P-80 Master assimilated allied Swordsman 8a 17635 | -3/Garrison | Core integrity fell below 50% 17640 | -3/Garrison | Spotted B-86 Titan 17649 | -3/Garrison | Triggered checkpoint 17668 | -3/Garrison | Garrison Relay disabled 17674 | -3/Garrison | Triggered checkpoint 17682 | -3/Garrison | Core integrity fell below 20% 17700 | -3/Garrison | Destroyed by P-80 Master with Gamma Rifle Last Messages --------------- 17677_ P-80 Master resets C-35 Carver, system corruption cleaned. 17677_ Cmb. Antigrav System severed. 17678_ Acquired Cmb. Antigrav System. 17678_ Cmb. Antigrav System destroyed. 17679_ Slug penetrates Wall. 17679_ C-35 Carver destroyed. 17687_ Slug penetrates Wall. 17688_ Cmb. Antigrav System severed. 17689_ Acquired Cmb. Antigrav System. 17691_ Dropped Energy Well. 17691_ Cmb. Antigrav System destroyed. 17691_ Penetrated by Slug. 17691_ Slug penetrates Wall. 17692_ Extracted 94 energy. 17693_ Extracted 19 energy. 17693_ Imp. Gyrokinetic Inverter destroyed. 17694_ Extracted 19 energy. 17694_ Cld. Antigrav System severed. 17696_ Acquired Cld. Antigrav System. Map ----- +----------------------------------------------------+ | | | | | | | | | | | | | | | | | | | | | | | | | | | ?????????????????????????????????????????????????? | | ?????????????????????????????????????????????????? | | ?????????????????????????????????????????????????? | | ?????????????????????????????????????????????????? | | ?????????????????????????????????????????????????? | | ?????????????????????????????????????????????????? | | ?????????????????????????????????????????????????? | | ?????????????????????????????????????????????????? | | ??????????????????????#######????????????????????? | | ??????????????????????# #????????????????????? | | ??????????????????????# < #????????????????????? | | ??????????############# #????????????????????? | | ??????????# = ## @###????????????????????? | | ??????????# ## #??????????????????????? | | ??####????# ## c#??????????????????????? | | ??# ###??# ## c#??????????????????????? | | ??# #"#??#* [ ## #??????????????????????? | | ??# "#??# * ## c #??????????????????????? | | ??#^^ "#??# ## !#?????????????????###??? | | ??# "#??#! ## g#????????????????## ###? | | ??# #"#??# [ g#?????????######## !#? | | ??# ###??# ## s #?????????#! # ++ !#? | | ### #????############# #?????????# # ## !#? | | #????????????????#gp ###########+###+##! !#? | | #??????????####### h + ##! !#? | | ######??????????# + #####+###+##! !#? | | ????????????????# ##### #### #???# # ## !#? | | ????????????????# #???# #??# ###?# #! ++ !#? | | ????????????????# #???# #??#= #?######## !#? | | ????????????????# #???# #??#%* #????????## ###? | | ????????????????# #???#^^^#??#! #?????????###??? | | ????????????????# #???#^^h#??# ###??????????????? | | ????????????????# #???# #??# #????????????????? | | ????????????????# #???# #??# #????????????????? | | ????????????????# #???# #??# =###??????????????? | | ????????????????# #???# #??# #"#??????????????? | | ????????????????# #???# #??# !"#??????????????? | +----------------------------------------------------+ Best States ------------- Heat Dissipation 119 Energy Generation 55 Energy Capacity 700 Matter Stores 300 Matter Capacity 300 Sight Range 23 Robot Scan Range 16 Terrain Scan Range 20 Terrain Scan Density 10 ECM Strength 2 Additional Mass Support 12 Base Temperature (-) 200 Armor Coverage 450 Resistance: KI 30 Resistance: TH 30 Resistance: EM 50 Utility Shielding 66 Evasion (%) 65 Targeting Accuracy 8 Recoil Reduction 6 Matter Filtering 30 Particle Charging 20 Offensive Hacking 16 Defensive Hacking 28 Item Schematics ----------------- Med. Storage Unit | -9/Materials | Hacked Imp. VTOL Module | -9/Materials | Scanalyzed Plasma Cutter | -9/Materials | Scanalyzed Imp. Assault Rifle | -9/Materials | Scanalyzed EM Shotgun | -8/Recycling | Hacked Combat Drone Bay | -6/Data Miner | Free Lgt. Regenerative Plating | -6/Data Miner | Free Enh. Armored Leg | -6/Data Miner | Free Exp. Heat Sink | -6/Data Miner | Free Imp. KE Penetrator | -6/Data Miner | Free Imp. Linear Gravjet | -6/Data Miner | Free Adv. Power Amplifier | -6/Data Miner | Free Hvy. Disruptor Cannon | -6/Data Miner | Free Hvy. Phase Cannon | -6/Data Miner | Free Adv. Transmission Jammer | -6/Data Miner | Free Nova Cannon | -6/Data Miner | Free Cld. Linear Gravjet | -5/Factory | Scanalyzed Adv. Hacking Suite | -5/Factory | Hacked Robot Schematics ------------------ A-15 Conveyor | -6/Data Miner | Free G-50 Soldier | -6/Data Miner | Free Y-54 Guardian | -6/Data Miner | Free Fabricated ------------ Cld. Linear Gravjet | x1 | -5/Factory Cld. Linear Gravjet | x1 | -5/Factory Repaired ---------- Mak. Power Source | 12% | -5/Factory Alien Tech Used ----------------- None Achievements -------------- None Challenges ------------ None Game ------ Seed AngularSalvagingTerminator Manual? 1 Play Time 05:18:29 Cumulative 268.5 hours Start 2025.05.31 @ 14:58:12 End 2025.05.31 @ 21:19:56 Sessions 1 Manual Loads 0 Difficulty Rogue Special Mode None Game No. 138 Rogue 130 Adventurer 8 Explorer 0 Win Type - Total 9 Types 4/0/2/2/0/0/0/0/0/1 Lore% 86 Gallery% 82 Achievement% 70 Wizard Run 0 Options --------- Layout 2 ASCII 0 Keyboard 1 Movement Numpad Keybinds 1 Fullscreen 1 Font 48/Smallcaps Map View 50x44 Zoom Use 0% Tactical HUD 1 Map Filters NONE Filters NONE Steam 1 RUN: a0d5e491-31dd-4700-97b3-8238777f3522